[Event "Live Chess"]
[Site "Chess.com"]
[Date "2024.06.02"]
[Round "-"]
[White "Mangoalo"]
[Black "MagnersCarlsberg2870"]
[Result "0-1"]
[WhiteElo "1064"]
[BlackElo "1820"]
[TimeControl "300"]
[EndTime "21:27:22 PDT"]
[Termination "MagnersCarlsberg2870 won by resignation"]

1. e4 {[%clk 0:04:58.5]} 1... e5 {[%clk 0:04:58.4]} 2. Nf3 {[%clk 0:04:58.4]}
2... Nf6 {[%clk 0:04:56.5]} 3. Nxe5 {[%clk 0:04:56.3]} 3... Nc6 {[%clk
0:04:54.3]} 4. Nxf7 {[%clk 0:04:52.9]} 4... Kxf7 {[%clk 0:04:52.9]} 5. Bc4+
{[%clk 0:04:51.7]} 5... Ke8 {[%clk 0:04:50.6]} 6. e5 {[%clk 0:04:50.8]} 6...
Nxe5 {[%clk 0:04:49.2]} 7. Bb3 {[%clk 0:04:49]} 7... d5 {[%clk 0:04:35.7]} 8.
O-O {[%clk 0:04:47.4]} 8... Neg4 {[%clk 0:04:24.4]} 9. f3 {[%clk 0:04:41.3]}
9... Nxh2 {[%clk 0:03:54.3]} 10. Kxh2 {[%clk 0:04:36.8]} 10... Bd6+ {[%clk
0:03:53.2]} 11. Kg1 {[%clk 0:04:35.7]} 11... Bf5 {[%clk 0:03:41.5]} 12. d4
{[%clk 0:04:32.8]} 12... Qd7 {[%clk 0:03:34.9]} 13. Nc3 {[%clk 0:04:27.1]} 13...
h5 {[%clk 0:03:27.6]} 14. Re1+ {[%clk 0:04:26.2]} 14... Kd8 {[%clk 0:03:26.3]}
15. Ba4 {[%clk 0:04:25]} 15... c6 {[%clk 0:03:24.9]} 16. Bg5 {[%clk 0:04:14.4]}
16... h4 {[%clk 0:03:22.6]} 17. Bxf6+ {[%clk 0:04:05.1]} 17... gxf6 {[%clk
0:03:21.1]} 18. Re2 {[%clk 0:03:58]} 18... Bg3 {[%clk 0:03:14]} 19. Qd2 {[%clk
0:03:53.6]} 19... h3 {[%clk 0:03:11.1]} 20. gxh3 {[%clk 0:03:48.4]} 20... Bd3
{[%clk 0:02:47.5]} 21. Qxd3 {[%clk 0:03:41]} 21... Qxh3 {[%clk 0:02:46.2]} 0-1

[Event "Live Chess"]
[Site "Chess.com"]
[Date "2024.06.02"]
[Round "-"]
[White "NeilDruggan73"]
[Black "Delacorta"]
[Result "0-1"]
[WhiteElo "1749"]
[BlackElo "1513"]
[TimeControl "300"]
[EndTime "21:29:18 PDT"]
[Termination "Delacorta won by checkmate"]

1. d4 {[%clk 0:04:57.9]} 1... Nf6 {[%clk 0:04:57.4]} 2. Bg5 {[%clk 0:04:55.7]}
2... h6 {[%clk 0:04:53.9]} 3. Bxf6 {[%clk 0:04:54.6]} 3... gxf6 {[%clk
0:04:49.9]} 4. e3 {[%clk 0:04:54.2]} 4... d5 {[%clk 0:04:42.9]} 5. Nd2 {[%clk
0:04:51.1]} 5... Bf5 {[%clk 0:04:40.5]} 6. b3 {[%clk 0:04:49.3]} 6... Nc6 {[%clk
0:04:38.1]} 7. Rc1 {[%clk 0:04:48.7]} 7... Qd7 {[%clk 0:04:37]} 8. c4 {[%clk
0:04:47.5]} 8... e6 {[%clk 0:04:32.3]} 9. Ngf3 {[%clk 0:04:44.5]} 9... Bg4
{[%clk 0:04:26.2]} 10. Be2 {[%clk 0:04:43.3]} 10... Bb4 {[%clk 0:04:23.3]} 11.
O-O {[%clk 0:04:39.4]} 11... Rg8 {[%clk 0:04:18.2]} 12. cxd5 {[%clk 0:04:29.5]}
12... Qxd5 {[%clk 0:04:05]} 13. Rc4 {[%clk 0:04:26.3]} 13... Bh3 {[%clk
0:04:00.6]} 14. e4 {[%clk 0:04:18.4]} 14... Rxg2+ {[%clk 0:03:55.8]} 15. Kh1
{[%clk 0:04:15.7]} 15... Qh5 {[%clk 0:03:44.4]} 16. Ne5 {[%clk 0:04:05.7]} 16...
Qg5 {[%clk 0:03:28]} 17. Nxc6 {[%clk 0:03:57.9]} 17... Rxh2+ {[%clk 0:03:18.2]}
18. Kxh2 {[%clk 0:03:54.8]} 18... Qg2# {[%clk 0:03:17.3]} 0-1

[Event "Live Chess"]
[Site "Chess.com"]
[Date "2024.06.02"]
[Round "-"]
[White "Delacorta"]
[Black "Mangoalo"]
[Result "1-0"]
[WhiteElo "1515"]
[BlackElo "1063"]
[TimeControl "300"]
[EndTime "21:30:27 PDT"]
[Termination "Delacorta won by resignation"]

1. d4 {[%clk 0:04:56.5]} 1... Nf6 {[%clk 0:04:57.9]} 2. Nf3 {[%clk 0:04:55.6]}
2... e6 {[%clk 0:04:57]} 3. e3 {[%clk 0:04:54.8]} 3... Bb4+ {[%clk 0:04:56.3]}
4. Nbd2 {[%clk 0:04:52.9]} 4... Bxd2+ {[%clk 0:04:54.6]} 5. Qxd2 {[%clk
0:04:48.5]} 5... O-O {[%clk 0:04:50.6]} 6. Bd3 {[%clk 0:04:47.4]} 6... Qe7
{[%clk 0:04:49]} 7. b3 {[%clk 0:04:46.1]} 7... d5 {[%clk 0:04:47.8]} 8. a4
{[%clk 0:04:44.8]} 8... Bd7 {[%clk 0:04:45.7]} 9. Ba3 {[%clk 0:04:43.4]} 9...
Qe8 {[%clk 0:04:34.2]} 10. Bxf8 {[%clk 0:04:41]} 10... Qxf8 {[%clk 0:04:34.1]}
11. Ne5 {[%clk 0:04:40]} 11... c5 {[%clk 0:04:29.6]} 1-0

[Event "Live Chess"]
[Site "Chess.com"]
[Date "2024.06.02"]
[Round "-"]
[White "MagnersCarlsberg2870"]
[Black "NeilDruggan73"]
[Result "1-0"]
[WhiteElo "1826"]
[BlackElo "1743"]
[TimeControl "300"]
[EndTime "21:30:34 PDT"]
[Termination "MagnersCarlsberg2870 won by resignation"]

1. Nf3 {[%clk 0:04:57.2]} 1... d6 {[%clk 0:04:57.7]} 2. e4 {[%clk 0:04:52.1]}
2... Nf6 {[%clk 0:04:56.1]} 3. d3 {[%clk 0:04:50.8]} 3... e5 {[%clk 0:04:55.1]}
4. g3 {[%clk 0:04:48.4]} 4... g6 {[%clk 0:04:54.5]} 5. Bg2 {[%clk 0:04:47.6]}
5... Be6 {[%clk 0:04:53.9]} 6. O-O {[%clk 0:04:46.4]} 6... Qd7 {[%clk
0:04:52.1]} 7. Ng5 {[%clk 0:04:38.9]} 7... Bh3 {[%clk 0:04:46.2]} 8. Bxh3 {[%clk
0:04:36.5]} 8... Qxh3 {[%clk 0:04:44.2]} 9. Nxh3 {[%clk 0:04:35.2]} 9... h6
{[%clk 0:04:38.8]} 10. f4 {[%clk 0:04:30.4]} 10... exf4 {[%clk 0:04:36.7]} 11.
Nxf4 {[%clk 0:04:20.3]} 11... Nc6 {[%clk 0:04:36.6]} 12. Nd5 {[%clk 0:04:18.2]}
1-0

[Event "Live Chess"]
[Site "Chess.com"]
[Date "2024.06.02"]
[Round "-"]
[White "KeithArkell"]
[Black "KGreenGator"]
[Result "1-0"]
[WhiteElo "2423"]
[BlackElo "1791"]
[TimeControl "300"]
[EndTime "21:31:13 PDT"]
[Termination "KeithArkell won on time"]

1. d4 {[%clk 0:04:57.6]} 1... d5 {[%clk 0:04:58.1]} 2. Nf3 {[%clk 0:04:57]} 2...
Nf6 {[%clk 0:04:56.8]} 3. c4 {[%clk 0:04:56.7]} 3... e6 {[%clk 0:04:55.3]} 4.
Nc3 {[%clk 0:04:56.1]} 4... Be7 {[%clk 0:04:53.1]} 5. cxd5 {[%clk 0:04:55.5]}
5... exd5 {[%clk 0:04:51.5]} 6. Bg5 {[%clk 0:04:55.2]} 6... c6 {[%clk
0:04:49.9]} 7. e3 {[%clk 0:04:54.7]} 7... O-O {[%clk 0:04:48.1]} 8. Bd3 {[%clk
0:04:53.3]} 8... h6 {[%clk 0:04:44.1]} 9. Bh4 {[%clk 0:04:52.6]} 9... Bg4 {[%clk
0:04:38.1]} 10. Qc2 {[%clk 0:04:50.3]} 10... Nbd7 {[%clk 0:04:35.5]} 11. Ne5
{[%clk 0:04:43.1]} 11... Nxe5 {[%clk 0:04:32.4]} 12. dxe5 {[%clk 0:04:42.1]}
12... Nd7 {[%clk 0:04:31]} 13. Bg3 {[%clk 0:04:41.2]} 13... Re8 {[%clk
0:04:24.1]} 14. Bh7+ {[%clk 0:04:39.9]} 14... Kh8 {[%clk 0:04:22.1]} 15. Bf5
{[%clk 0:04:39.8]} 15... Bxf5 {[%clk 0:04:18.3]} 16. Qxf5 {[%clk 0:04:39.7]}
16... Rf8 {[%clk 0:04:13]} 17. O-O {[%clk 0:04:37.7]} 17... g6 {[%clk
0:04:02.6]} 18. Qh3 {[%clk 0:04:34.5]} 18... Kg7 {[%clk 0:03:58.1]} 19. Rad1
{[%clk 0:04:28.3]} 19... Nc5 {[%clk 0:03:53.8]} 20. Rd2 {[%clk 0:04:23.9]} 20...
Qc8 {[%clk 0:03:47.4]} 21. Qxc8 {[%clk 0:04:22.6]} 21... Raxc8 {[%clk
0:03:45.1]} 22. Rfd1 {[%clk 0:04:21]} 22... Ne6 {[%clk 0:03:39.6]} 23. Ne2
{[%clk 0:04:15]} 23... Ng5 {[%clk 0:03:37.1]} 24. f3 {[%clk 0:04:13.1]} 24...
Ne6 {[%clk 0:03:31.8]} 25. Nd4 {[%clk 0:04:11.8]} 25... Nxd4 {[%clk 0:03:29.6]}
26. exd4 {[%clk 0:04:11.1]} 26... f6 {[%clk 0:03:23.9]} 27. Rc2 {[%clk
0:04:08.8]} 27... f5 {[%clk 0:03:18.9]} 28. a3 {[%clk 0:04:05.4]} 28... Rfd8
{[%clk 0:03:15]} 29. Bf2 {[%clk 0:04:03.6]} 29... b6 {[%clk 0:03:13.2]} 30. g4
{[%clk 0:04:00.4]} 30... f4 {[%clk 0:03:07.8]} 31. b4 {[%clk 0:03:58.4]} 31...
g5 {[%clk 0:03:05.6]} 32. Kf1 {[%clk 0:03:57.4]} 32... a5 {[%clk 0:02:53.9]} 33.
bxa5 {[%clk 0:03:54.1]} 33... bxa5 {[%clk 0:02:52.3]} 34. a4 {[%clk 0:03:53.1]}
34... Rd7 {[%clk 0:02:48.6]} 35. Rdc1 {[%clk 0:03:49.6]} 35... Rdc7 {[%clk
0:02:46.4]} 36. Be1 {[%clk 0:03:48.9]} 36... Bb4 {[%clk 0:02:38.5]} 37. Bxb4
{[%clk 0:03:46.1]} 37... axb4 {[%clk 0:02:37.5]} 38. Rc5 {[%clk 0:03:43.7]}
38... Kf7 {[%clk 0:02:22.6]} 39. Ke2 {[%clk 0:03:42.8]} 39... Ke6 {[%clk
0:02:21.3]} 40. Rb1 {[%clk 0:03:39.2]} 40... Rb7 {[%clk 0:02:18.8]} 41. Rb3
{[%clk 0:03:36.4]} 41... Kd7 {[%clk 0:02:15]} 42. Ra5 {[%clk 0:03:35]} 42...
Rcb8 {[%clk 0:02:06.9]} 43. Kd3 {[%clk 0:03:33.7]} 43... Rc8 {[%clk 0:02:03.3]}
44. Rc5 {[%clk 0:03:28.4]} 44... Ke6 {[%clk 0:01:56.5]} 45. a5 {[%clk
0:03:26.6]} 45... Kd7 {[%clk 0:01:48.8]} 46. a6 {[%clk 0:03:25.7]} 46... Rb6
{[%clk 0:01:45.9]} 47. Ra5 {[%clk 0:03:24.9]} 47... Ra8 {[%clk 0:01:42.4]} 48.
a7 {[%clk 0:03:24.1]} 48... Rb7 {[%clk 0:01:39.9]} 49. Ra4 {[%clk 0:03:12.3]}
49... Raxa7 {[%clk 0:01:38]} 50. Rbxb4 {[%clk 0:03:10]} 50... Rc7 {[%clk
0:01:32.5]} 51. Rxa7 {[%clk 0:03:04.2]} 51... Rxa7 {[%clk 0:01:31.2]} 52. Rb2
{[%clk 0:02:58.6]} 52... Ra3+ {[%clk 0:01:29.2]} 53. Ke2 {[%clk 0:02:57.7]}
53... Ra7 {[%clk 0:01:26]} 54. h4 {[%clk 0:02:48.2]} 54... Ke6 {[%clk
0:01:22.2]} 55. hxg5 {[%clk 0:02:45.7]} 55... hxg5 {[%clk 0:01:20.8]} 56. Rb8
{[%clk 0:02:43.4]} 56... Rg7 {[%clk 0:01:16.6]} 57. Rd8 {[%clk 0:02:40.8]} 57...
Rd7 {[%clk 0:01:06.9]} 58. Rg8 {[%clk 0:02:38.7]} 58... Rc7 {[%clk 0:01:02.1]}
59. Rxg5 {[%clk 0:02:34.5]} 59... c5 {[%clk 0:01:01]} 60. Kd3 {[%clk 0:02:33.4]}
60... c4+ {[%clk 0:00:59.9]} 61. Kc3 {[%clk 0:02:32.4]} 61... Rb7 {[%clk
0:00:57.9]} 62. Rg6+ {[%clk 0:02:31.9]} 62... Kf7 {[%clk 0:00:56.1]} 63. Rf6+
{[%clk 0:02:30.5]} 63... Ke7 {[%clk 0:00:55.3]} 64. Rxf4 {[%clk 0:02:29.9]}
64... Rb3+ {[%clk 0:00:53.8]} 65. Kc2 {[%clk 0:02:29.4]} 65... Rd3 {[%clk
0:00:51.1]} 66. g5 {[%clk 0:02:28.9]} 66... Re3 {[%clk 0:00:49.6]} 67. g6 {[%clk
0:02:28.4]} 67... Re2+ {[%clk 0:00:48.8]} 68. Kc3 {[%clk 0:02:27.9]} 68... Rg2
{[%clk 0:00:47.5]} 69. Rf6 {[%clk 0:02:27.2]} 69... Rg3 {[%clk 0:00:45.2]} 70.
Rd6 {[%clk 0:02:24.3]} 70... Rxf3+ {[%clk 0:00:42.8]} 71. Kb4 {[%clk 0:02:23.7]}
71... Rg3 {[%clk 0:00:42.1]} 72. Rxd5 {[%clk 0:02:23]} 72... Rxg6 {[%clk
0:00:39.4]} 73. Kxc4 {[%clk 0:02:22]} 73... Re6 {[%clk 0:00:35.8]} 74. Rc5
{[%clk 0:02:20.8]} 74... Kd7 {[%clk 0:00:34.7]} 75. Kd5 {[%clk 0:02:19.6]} 75...
Rh6 {[%clk 0:00:32.8]} 76. Ra5 {[%clk 0:02:18.5]} 76... Kc7 {[%clk 0:00:31.5]}
77. Ra7+ {[%clk 0:02:17.7]} 77... Kb6 {[%clk 0:00:30.3]} 78. Rf7 {[%clk
0:02:17.3]} 78... Rh5 {[%clk 0:00:28.6]} 79. Ke6 {[%clk 0:02:15.6]} 79... Rh4
{[%clk 0:00:27.7]} 80. d5 {[%clk 0:02:15]} 80... Rh6+ {[%clk 0:00:26.7]} 81. Rf6
{[%clk 0:02:13.8]} 81... Rh7 {[%clk 0:00:24.8]} 82. d6 {[%clk 0:02:13.1]} 82...
Kc6 {[%clk 0:00:23.9]} 83. Rf1 {[%clk 0:02:12.2]} 83... Rh6+ {[%clk 0:00:21.8]}
84. Kf7 {[%clk 0:02:09.6]} 84... Rh7+ {[%clk 0:00:21.3]} 85. Kg6 {[%clk
0:02:08.1]} 85... Rh2 {[%clk 0:00:19.4]} 86. Rd1 {[%clk 0:02:05.2]} 86... Re2
{[%clk 0:00:16.8]} 87. Kf6 {[%clk 0:02:01.3]} 87... Kd7 {[%clk 0:00:14.8]} 88.
Rf1 {[%clk 0:01:59.4]} 88... Re4 {[%clk 0:00:13]} 89. Kf5 {[%clk 0:01:58.2]}
89... Re3 {[%clk 0:00:11.9]} 90. Ra1 {[%clk 0:01:55.9]} 90... Rh3 {[%clk
0:00:10.9]} 91. Ra7+ {[%clk 0:01:53.9]} 91... Kc6 {[%clk 0:00:09.9]} 92. Ra6+
{[%clk 0:01:51.6]} 92... Kb7 {[%clk 0:00:08.3]} 93. Ra1 {[%clk 0:01:49]} 93...
Rf3+ {[%clk 0:00:07.3]} 94. Ke6 {[%clk 0:01:47.9]} 94... Rf2 {[%clk 0:00:06.6]}
95. Rc1 {[%clk 0:01:46.3]} 95... Rd2 {[%clk 0:00:06]} 96. Kd7 {[%clk 0:01:44.7]}
96... Kb6 {[%clk 0:00:05.1]} 97. e6 {[%clk 0:01:44.1]} 97... Re2 {[%clk
0:00:04.2]} 98. e7 {[%clk 0:01:43.6]} 98... Rd2 {[%clk 0:00:03.3]} 99. e8=Q
{[%clk 0:01:42.4]} 99... Rd5 {[%clk 0:00:02]} 100. Qb8+ {[%clk 0:01:41.4]} 1-0

[Event "Live Chess"]
[Site "Chess.com"]
[Date "2024.06.02"]
[Round "-"]
[White "Dhaydon19"]
[Black "Duke_of_Bebington"]
[Result "1-0"]
[WhiteElo "2673"]
[BlackElo "1664"]
[TimeControl "300"]
[EndTime "21:31:31 PDT"]
[Termination "Dhaydon19 won by resignation"]

1. d4 {[%clk 0:04:58]} 1... Nf6 {[%clk 0:04:57.6]} 2. c3 {[%clk 0:04:57.7]} 2...
Nc6 {[%clk 0:04:52.6]} 3. Nf3 {[%clk 0:04:56.9]} 3... e6 {[%clk 0:04:46.9]} 4.
g3 {[%clk 0:04:26.3]} 4... Be7 {[%clk 0:04:44.1]} 5. Bg2 {[%clk 0:04:24.3]} 5...
O-O {[%clk 0:04:43.6]} 6. Qc2 {[%clk 0:04:23.6]} 6... b6 {[%clk 0:04:41.3]} 7.
O-O {[%clk 0:04:20]} 7... Bb7 {[%clk 0:04:40.7]} 8. Nbd2 {[%clk 0:04:19.3]} 8...
Re8 {[%clk 0:04:34.2]} 9. e4 {[%clk 0:04:17.7]} 9... d6 {[%clk 0:04:28.4]} 10.
Re1 {[%clk 0:04:16.1]} 10... d5 {[%clk 0:04:20.1]} 11. e5 {[%clk 0:04:13.7]}
11... Nd7 {[%clk 0:04:19.1]} 12. Nf1 {[%clk 0:04:13.1]} 12... f6 {[%clk
0:04:18.3]} 13. exf6 {[%clk 0:04:11.6]} 13... Nxf6 {[%clk 0:04:15.7]} 14. Rxe6
{[%clk 0:04:08.8]} 14... Qd7 {[%clk 0:04:05.8]} 15. Bh3 {[%clk 0:04:01.9]} 15...
Bc8 {[%clk 0:03:59.6]} 16. Ng5 {[%clk 0:03:18.2]} 16... h6 {[%clk 0:03:54.1]}
17. Rxf6 {[%clk 0:03:15]} 17... Bxf6 {[%clk 0:03:52.7]} 18. Qh7+ {[%clk
0:03:11.4]} 18... Kf8 {[%clk 0:03:50.9]} 19. Bxd7 {[%clk 0:03:09]} 19... Bxd7
{[%clk 0:03:47.6]} 20. Nf3 {[%clk 0:03:04.5]} 20... Bg4 {[%clk 0:03:36.9]} 21.
Ne5 {[%clk 0:03:03.3]} 21... Nxe5 {[%clk 0:03:34.7]} 22. dxe5 {[%clk 0:03:02]}
22... Bxe5 {[%clk 0:03:32.5]} 23. Be3 {[%clk 0:02:57.4]} 23... Kf7 {[%clk
0:03:22.5]} 24. Bd4 {[%clk 0:02:53.9]} 24... Rh8 {[%clk 0:03:16.3]} 25. Qd3
{[%clk 0:02:49.4]} 25... Bd6 {[%clk 0:03:10.2]} 26. Ne3 {[%clk 0:02:46.7]} 26...
Bf3 {[%clk 0:03:06.9]} 27. Qf5+ {[%clk 0:02:43.1]} 27... Ke7 {[%clk 0:03:04.3]}
28. Qxf3 {[%clk 0:02:42.4]} 1-0

[Event "Live Chess"]
[Site "Chess.com"]
[Date "2024.06.02"]
[Round "-"]
[White "Winterowl"]
[Black "Mangoalo"]
[Result "1-0"]
[WhiteElo "1561"]
[BlackElo "1062"]
[TimeControl "300"]
[EndTime "21:33:16 PDT"]
[Termination "Winterowl won by resignation"]

1. e4 {[%clk 0:04:57.9]} 1... d5 {[%clk 0:04:58.3]} 2. exd5 {[%clk 0:04:56.6]}
2... Nf6 {[%clk 0:04:57.9]} 3. d4 {[%clk 0:04:54.8]} 3... Bg4 {[%clk 0:04:54.2]}
4. f3 {[%clk 0:04:50.9]} 4... Bh5 {[%clk 0:04:51.8]} 5. c4 {[%clk 0:04:49]} 5...
c6 {[%clk 0:04:49.8]} 6. dxc6 {[%clk 0:04:46.9]} 6... Nxc6 {[%clk 0:04:49.7]} 7.
Be3 {[%clk 0:04:43.4]} 7... e6 {[%clk 0:04:46.3]} 8. Nc3 {[%clk 0:04:40.3]} 8...
Bb4 {[%clk 0:04:43.8]} 9. Ne2 {[%clk 0:04:38.1]} 9... O-O {[%clk 0:04:40.3]} 10.
Ng3 {[%clk 0:04:35.8]} 10... Bg6 {[%clk 0:04:38.5]} 11. Bd3 {[%clk 0:04:32.6]}
11... Bxd3 {[%clk 0:04:35.8]} 12. Qxd3 {[%clk 0:04:31.1]} 12... e5 {[%clk
0:04:34.1]} 13. d5 {[%clk 0:04:29.5]} 13... Bxc3+ {[%clk 0:04:30.3]} 14. bxc3
{[%clk 0:04:27.6]} 14... Ne7 {[%clk 0:04:27.6]} 15. O-O {[%clk 0:04:26]} 15...
Rc8 {[%clk 0:04:24.7]} 16. Ne4 {[%clk 0:04:23.4]} 16... Nxe4 {[%clk 0:04:23.3]}
17. fxe4 {[%clk 0:04:22.5]} 17... Ng6 {[%clk 0:04:22.7]} 18. c5 {[%clk
0:04:19.4]} 18... Qa5 {[%clk 0:04:19.6]} 19. c4 {[%clk 0:04:17.6]} 19... b6
{[%clk 0:04:17.4]} 20. c6 {[%clk 0:04:16]} 20... Rc7 {[%clk 0:04:15.6]} 21. Bd2
{[%clk 0:04:14.7]} 21... Qa6 {[%clk 0:04:06.1]} 22. Qb3 {[%clk 0:04:10.6]} 22...
Nf4 {[%clk 0:04:02.5]} 23. Bxf4 {[%clk 0:04:08.9]} 23... exf4 {[%clk 0:04:02.4]}
24. Rxf4 {[%clk 0:04:07.2]} 24... Rd8 {[%clk 0:03:58.5]} 25. e5 {[%clk
0:04:05.1]} 1-0

[Event "Live Chess"]
[Site "Chess.com"]
[Date "2024.06.02"]
[Round "-"]
[White "MagnersCarlsberg2870"]
[Black "KeithArkell"]
[Result "0-1"]
[WhiteElo "1825"]
[BlackElo "2424"]
[TimeControl "300"]
[EndTime "21:33:30 PDT"]
[Termination "KeithArkell won by resignation"]

1. d4 {[%clk 0:04:56.5]} 1... e6 {[%clk 0:04:58.5]} 2. Nd2 {[%clk 0:04:52.2]}
2... d5 {[%clk 0:04:56.8]} 3. e3 {[%clk 0:04:50.8]} 3... Nf6 {[%clk 0:04:55.3]}
4. Bd3 {[%clk 0:04:49.7]} 4... b6 {[%clk 0:04:54.7]} 5. f4 {[%clk 0:04:46.1]}
5... Ba6 {[%clk 0:04:53.6]} 6. Qe2 {[%clk 0:04:43.5]} 6... Bxd3 {[%clk
0:04:52.3]} 7. Qxd3 {[%clk 0:04:42.7]} 7... Be7 {[%clk 0:04:50.5]} 8. Ngf3
{[%clk 0:04:41.8]} 8... g6 {[%clk 0:04:49.5]} 9. c3 {[%clk 0:04:40.7]} 9... O-O
{[%clk 0:04:48.6]} 10. Ne5 {[%clk 0:04:39.8]} 10... c5 {[%clk 0:04:47.9]} 11. h4
{[%clk 0:04:38.4]} 11... Qc7 {[%clk 0:04:46.8]} 12. h5 {[%clk 0:04:37.2]} 12...
Nxh5 {[%clk 0:04:46]} 13. Rxh5 {[%clk 0:04:34.5]} 13... gxh5 {[%clk 0:04:45.2]}
14. Ndf3 {[%clk 0:04:33.2]} 14... f6 {[%clk 0:04:43.5]} 15. Bd2 {[%clk
0:04:19.7]} 15... fxe5 {[%clk 0:04:42.4]} 16. Nxe5 {[%clk 0:04:18.5]} 16... Nc6
{[%clk 0:04:40.4]} 17. Qe2 {[%clk 0:04:17]} 17... Nxe5 {[%clk 0:04:39.3]} 18.
dxe5 {[%clk 0:04:13.6]} 18... Rf5 {[%clk 0:04:37.8]} 19. O-O-O {[%clk
0:04:10.5]} 19... Kh8 {[%clk 0:04:36.1]} 20. Rh1 {[%clk 0:04:09.3]} 20... Rg8
{[%clk 0:04:34.2]} 21. Rxh5 {[%clk 0:04:07.7]} 21... Rxh5 {[%clk 0:04:33.3]} 22.
Qxh5 {[%clk 0:04:06.7]} 22... Qd7 {[%clk 0:04:32.5]} 23. g4 {[%clk 0:03:57.2]}
23... Qe8 {[%clk 0:04:31.3]} 24. Qh3 {[%clk 0:03:54.4]} 24... Qg6 {[%clk
0:04:30.4]} 25. g5 {[%clk 0:03:50.6]} 25... c4 {[%clk 0:04:28.7]} 26. Be1 {[%clk
0:03:43.2]} 26... b5 {[%clk 0:04:26.4]} 27. a3 {[%clk 0:03:41.4]} 27... a5
{[%clk 0:04:25.5]} 0-1

[Event "Live Chess"]
[Site "Chess.com"]
[Date "2024.06.02"]
[Round "-"]
[White "Duke_of_Bebington"]
[Black "juniortay"]
[Result "0-1"]
[WhiteElo "1664"]
[BlackElo "2449"]
[TimeControl "300"]
[EndTime "21:34:40 PDT"]
[Termination "juniortay won by resignation"]

1. e4 {[%clk 0:04:55.5]} 1... e5 {[%clk 0:04:59.2]} 2. Nf3 {[%clk 0:04:54.1]}
2... Nf6 {[%clk 0:04:58.4]} 3. Nxe5 {[%clk 0:04:47.6]} 3... Nc6 {[%clk
0:04:57.9]} 4. Nxc6 {[%clk 0:04:43.4]} 4... dxc6 {[%clk 0:04:57.8]} 5. d3 {[%clk
0:04:33.4]} 5... Bc5 {[%clk 0:04:56.5]} 6. Be3 {[%clk 0:04:26.7]} 6... Bxe3
{[%clk 0:04:54.6]} 7. fxe3 {[%clk 0:04:26]} 7... Ng4 {[%clk 0:04:54.5]} 8. Qf3
{[%clk 0:04:22.9]} 8... Qg5 {[%clk 0:04:53.6]} 9. Be2 {[%clk 0:04:04.5]} 9...
Nxe3 {[%clk 0:04:50.7]} 10. Na3 {[%clk 0:03:59.5]} 10... Nxg2+ {[%clk
0:04:48.4]} 11. Kd1 {[%clk 0:03:57.3]} 11... Nf4 {[%clk 0:04:42.3]} 12. c3
{[%clk 0:03:52.9]} 12... Nxe2 {[%clk 0:04:41.2]} 13. Qxe2 {[%clk 0:03:51]} 13...
Bg4 {[%clk 0:04:40.2]} 0-1

[Event "Live Chess"]
[Site "Chess.com"]
[Date "2024.06.02"]
[Round "-"]
[White "Mangoalo"]
[Black "KeithArkell"]
[Result "0-1"]
[WhiteElo "1062"]
[BlackElo "2424"]
[TimeControl "300"]
[EndTime "21:34:59 PDT"]
[Termination "KeithArkell won by resignation"]

1. e4 {[%clk 0:04:58.6]} 1... c6 {[%clk 0:04:57.5]} 2. d4 {[%clk 0:04:56.9]}
2... d5 {[%clk 0:04:57.2]} 3. exd5 {[%clk 0:04:56.8]} 3... cxd5 {[%clk
0:04:56.7]} 4. Bf4 {[%clk 0:04:55.2]} 4... Nf6 {[%clk 0:04:56.6]} 5. Nf3 {[%clk
0:04:54.5]} 5... Nc6 {[%clk 0:04:55.9]} 6. Nc3 {[%clk 0:04:53.9]} 6... Bg4
{[%clk 0:04:55.3]} 7. Be2 {[%clk 0:04:52.8]} 7... e6 {[%clk 0:04:54.8]} 8. Qd3
{[%clk 0:04:50.6]} 8... Bxf3 {[%clk 0:04:53.3]} 9. Bxf3 {[%clk 0:04:48]} 9...
Bd6 {[%clk 0:04:53]} 10. Bxd6 {[%clk 0:04:46.6]} 10... Qxd6 {[%clk 0:04:52.9]}
11. O-O-O {[%clk 0:04:45.8]} 11... a6 {[%clk 0:04:50.6]} 12. a3 {[%clk
0:04:44.3]} 12... b5 {[%clk 0:04:49.4]} 13. Ne2 {[%clk 0:04:43.4]} 13... b4
{[%clk 0:04:48.6]} 14. a4 {[%clk 0:04:41.3]} 14... b3 {[%clk 0:04:48.1]} 15. c3
{[%clk 0:04:39.4]} 15... Na5 {[%clk 0:04:47]} 16. Rhe1 {[%clk 0:04:29]} 16...
Qc6 {[%clk 0:04:45.5]} 17. Ng3 {[%clk 0:04:27.1]} 17... Qxa4 {[%clk 0:04:44.2]}
18. Kd2 {[%clk 0:04:23.7]} 18... Nc4+ {[%clk 0:04:42.4]} 19. Ke2 {[%clk
0:04:21.3]} 19... Nxb2 {[%clk 0:04:41.6]} 20. Qd2 {[%clk 0:04:19]} 20... Qc4+
{[%clk 0:04:37.9]} 21. Ke3 {[%clk 0:04:16.4]} 21... Nxd1+ {[%clk 0:04:36.8]} 22.
Rxd1 {[%clk 0:04:15.2]} 22... Rc8 {[%clk 0:04:36.2]} 0-1